bitfinex/quotes_BTCUSD_20240617
["timestamp","ask_amount","ask_price","bid_price","bid_amount"]
[1718662964994,1.87961838,66692.0,66691.0,0.00207497]
[1718662965219,1.97861838,66692.0,66691.0,0.00107497]
[1718662965420,2.00196648,66692.0,66691.0,0.00107497]
[1718662965594,1.99596648,66692.0,66691.0,0.00107497]
[1718662966024,2.00996648,66692.0,66691.0,0.00207497]
[1718662966254,1.90996648,66692.0,66691.0,0.00207497]
[1718662966550,2.00996648,66692.0,66691.0,0.00207497]
[1718662966959,1.90996648,66692.0,66691.0,0.00207497]
[1718662967747,2.00996648,66692.0,66691.0,0.00207497]
[1718662968360,1.90996648,66692.0,66691.0,0.00207497]
[1718662969549,2.00996648,66692.0,66691.0,0.00207497]
[1718662969759,2.32758198,66692.0,66691.0,0.00207497]
[1718662969987,2.3581862,66692.0,66691.0,0.00207497]
[1718662970354,2.35306223,66692.0,66691.0,0.00207497]
[1718662971182,2.33533273,66692.0,66691.0,0.00207497]
[1718662971360,2.33725325,66692.0,66691.0,0.00207497]
[1718662972874,2.33726885,66692.0,66691.0,0.00207497]
[1718662973615,2.03738285,66692.0,66691.0,0.00207497]
[1718662973814,2.00662654,66692.0,66691.0,0.00207497]
[1718662974014,2.15704766,66692.0,66691.0,0.00207497]
[1718662974580,2.98651254,66692.0,66691.0,9.7e-07]
[1718662974784,3.64299963,66692.0,66691.0,9.7e-07]
[1718662975144,3.06074049,66692.0,66691.0,9.7e-07]
[1718662976014,3.06026924,66692.0,66691.0,9.7e-07]
[1718662976567,3.2363331,66692.0,66691.0,9.7e-07]
[1718662976970,3.23313885,66692.0,66691.0,9.7e-07]
[1718662978611,3.23544347,66692.0,66691.0,9.7e-07]
[1718662979648,3.23544352,66692.0,66691.0,9.7e-07]
[1718662980185,3.21209232,66692.0,66691.0,9.7e-07]
[1718662982509,2.75949376,66692.0,66691.0,9.7e-07]
[1718662982717,2.4737656,66692.0,66691.0,9.7e-07]
[1718662982934,2.3890656,66692.0,66691.0,9.7e-07]
[1718662983145,2.17144182,66692.0,66691.0,9.7e-07]
[1718662983349,2.22621,66692.0,66691.0,9.7e-07]
[1718662983563,2.09158856,66692.0,66691.0,9.7e-07]
[1718662983969,2.22620572,66692.0,66691.0,9.7e-07]
[1718662984117,2.19418665,66692.0,66691.0,9.7e-07]
[1718662984329,2.31457977,66692.0,66691.0,9.7e-07]
[1718662984532,2.41457977,66692.0,66691.0,9.7e-07]
[1718662984732,2.3287945,66692.0,66691.0,9.7e-07]
[1718662985304,2.10858665,66692.0,66691.0,9.7e-07]
[1718662985544,2.09896246,66692.0,66691.0,9.7e-07]
[1718662985763,2.20273849,66692.0,66691.0,9.7e-07]
[1718662985939,2.32879615,66692.0,66691.0,9.7e-07]
[1718662986464,2.1941883,66692.0,66691.0,9.7e-07]
[1718662986673,2.32879615,66692.0,66691.0,9.7e-07]
[1718662986880,2.1941883,66692.0,66691.0,9.7e-07]
[1718662988336,2.19898434,66692.0,66691.0,9.7e-07]
[1718662990589,1.76349834,66692.0,66691.0,9.7e-07]
[1718662990797,1.89909834,66692.0,66691.0,9.7e-07]
[1718662990931,1.79415855,66692.0,66691.0,9.7e-07]
[1718662991133,1.77069898,66692.0,66691.0,9.7e-07]
[1718662991334,1.72069898,66692.0,66691.0,9.7e-07]
[1718662991896,1.83283851,66692.0,66691.0,9.7e-07]
[1718662992719,1.70700663,66692.0,66691.0,9.7e-07]
[1718662993276,1.69001062,66692.0,66691.0,9.7e-07]
[1718662993505,1.69087062,66692.0,66691.0,9.7e-07]
[1718662994659,1.74509474,66692.0,66691.0,9.7e-07]
[1718662996119,0.69094544,66692.0,66691.0,9.7e-07]
[1718662996339,0.69094544,66692.0,66691.0,0.14380097]
[1718662996502,1.05297385,66692.0,66691.0,0.14380097]
[1718662996701,1.35285985,66692.0,66691.0,0.14380097]
[1718662997133,1.35285985,66692.0,66691.0,9.7e-07]
[1718662997134,2.02152315,66692.0,66691.0,9.7e-07]
[1718662997330,1.06583842,66680.0,66679.0,0.000935]
[1718662997534,1.27478902,66680.0,66679.0,0.000935]
[1718662998010,1.35255005,66680.0,66679.0,0.000935]
[1718662999613,1.35255005,66680.0,66679.0,0.001935]
[1718662999936,1.25090163,66680.0,66679.0,0.001935]
[1718663000078,1.33650163,66680.0,66679.0,0.001935]
[1718663000279,1.31304416,66680.0,66679.0,0.001935]
[1718663001190,1.32909258,66680.0,66679.0,0.001935]
[1718663004536,1.62903258,66680.0,66679.0,0.001935]
[1718663004710,1.74133001,66680.0,66679.0,0.001935]
[1718663004945,1.65249334,66680.0,66679.0,0.001935]
[1718663005596,1.70275636,66680.0,66679.0,0.001935]
[1718663006225,1.61715636,66680.0,66679.0,0.001935]
[1718663006411,1.70275636,66680.0,66679.0,0.001935]
[1718663010008,2.20516222,66680.0,66679.0,0.001935]
[1718663010458,1.90522222,66680.0,66679.0,0.001935]
[1718663011256,2.116874,66680.0,66679.0,0.001935]
[1718663011889,2.016874,66680.0,66679.0,0.001935]
[1718663012065,1.75066083,66680.0,66679.0,0.001935]
[1718663012252,1.97649514,66680.0,66679.0,0.001935]
[1718663012776,2.16479632,66680.0,66679.0,0.001935]
[1718663012981,2.21453743,66680.0,66679.0,0.001935]
[1718663013176,1.97622487,66680.0,66679.0,0.001935]
[1718663013380,1.8812117,66680.0,66679.0,0.001935]
[1718663013617,1.85017309,66680.0,66679.0,0.001935]
[1718663013789,1.95525986,66680.0,66679.0,0.001935]
[1718663013984,1.85017309,66680.0,66679.0,0.001935]
[1718663014331,2.15011309,66680.0,66679.0,0.001935]
[1718663014740,2.35519986,66680.0,66679.0,0.001935]
[1718663014939,3.26176487,66680.0,66679.0,0.001935]
[1718663015146,3.49145802,66680.0,66679.0,0.001935]
[1718663015529,3.54145802,66680.0,66679.0,0.001935]
[1718663015671,2.74645802,66680.0,66679.0,0.001935]
[1718663016015,2.71947743,66680.0,66679.0,0.001935]
[1718663016175,2.72747743,66680.0,66679.0,0.002935]
[1718663016370,2.95717058,66680.0,66679.0,0.002935]
[1718663016574,2.95217058,66680.0,66679.0,0.001935]
[1718663017034,2.95217058,66680.0,66679.0,0.000935]
[1718663017035,2.79145802,66680.0,66679.0,0.000935]
[1718663017232,2.51176487,66680.0,66679.0,0.001935]
[1718663017433,2.51976487,66680.0,66679.0,0.001935]
[1718663017956,2.53376487,66680.0,66679.0,0.002935]
[1718663018378,2.57785802,66680.0,66679.0,0.002935]
[1718663018578,2.43376487,66680.0,66679.0,0.002935]
[1718663019631,2.13382487,66680.0,66679.0,0.002935]
[1718663022396,2.03217645,66680.0,66679.0,0.002935]
[1718663022602,2.13382487,66680.0,66679.0,0.144135]
[1718663022800,2.12194156,66680.0,66679.0,0.144135]
[1718663023041,2.13604856,66680.0,66679.0,0.144135]
[1718663023432,2.13616604,66680.0,66679.0,0.063835]
[1718663023828,2.13616604,66680.0,66679.0,0.002935]
[1718663025544,2.13577632,66680.0,66679.0,0.002935]
[1718663026109,2.13587706,66680.0,66679.0,0.002935]
[1718663026915,2.05027706,66680.0,66679.0,0.002935]
[1718663027150,2.13587706,66680.0,66679.0,0.002935]
[1718663027683,2.13590373,66680.0,66679.0,0.002935]
[1718663027885,2.03447257,66680.0,66679.0,0.002935]
[1718663028292,2.13583195,66680.0,66679.0,0.002935]
[1718663033622,0.06604842,66673.0,66672.0,0.009394]
[1718663033965,0.76607842,66664.0,66660.0,0.0632]
[1718663034123,1.60144353,66664.0,66660.0,0.0632]
[1718663034307,1.68369458,66664.0,66663.0,0.02722278]
[1718663034505,1.68369458,66664.0,66663.0,0.009394]
[1718663035292,1.83642346,66664.0,66663.0,0.009394]
[1718663035731,2.13643546,66664.0,66663.0,0.009394]
[1718663035875,2.13943546,66664.0,66663.0,0.009394]
[1718663036299,2.13951213,66664.0,66663.0,0.009394]
[1718663036618,1.75390013,66664.0,66663.0,0.009394]
[1718663036955,1.8053548,66664.0,66663.0,0.009394]
[1718663037458,1.80523433,66664.0,66663.0,0.009394]
[1718663038190,1.8938183,66664.0,66663.0,0.009394]
[1718663038395,1.9438183,66664.0,66663.0,0.009394]
[1718663038615,2.23425282,66664.0,66663.0,0.009394]
[1718663038822,2.33425282,66664.0,66663.0,0.009394]
[1718663039021,2.36541837,66664.0,66663.0,0.009394]
[1718663039671,1.98640637,66664.0,66663.0,0.009394]
[1718663039881,1.95524082,66664.0,66663.0,0.009394]
[1718663040629,1.55077028,66664.0,66663.0,0.157894]
[1718663040838,1.52730303,66664.0,66663.0,0.157894]
[1718663041029,1.54335145,66664.0,66663.0,0.157894]
[1718663041233,1.42939075,66664.0,66663.0,0.157894]
[1718663041530,1.41334233,66664.0,66663.0,0.157894]
[1718663041730,1.32786229,66664.0,66663.0,0.157894]
[1718663042093,1.26061345,66664.0,66663.0,0.157894]
[1718663042469,1.26265083,66664.0,66663.0,0.157894]
[1718663042875,0.96263883,66664.0,66663.0,0.157894]
[1718663043081,1.00747947,66664.0,66663.0,0.157894]
[1718663043289,0.96263883,66664.0,66663.0,0.157894]
[1718663043658,1.02992145,66664.0,66663.0,0.157894]
[1718663043831,1.26265083,66664.0,66663.0,0.157894]
[1718663044692,0.96263883,66664.0,66663.0,0.157894]
[1718663045064,1.26265083,66664.0,66663.0,0.157894]
[1718663045281,1.32993345,66664.0,66663.0,0.157894]
[1718663045626,1.27869925,66664.0,66663.0,0.157894]
[1718663045854,1.36835961,66664.0,66663.0,0.157894]
[1718663046277,1.36842531,66664.0,66663.0,0.157894]
[1718663047486,1.27869925,66664.0,66663.0,0.157894]
[1718663047613,1.23390834,66664.0,66663.0,0.157894]
[1718663047815,1.27952149,66664.0,66663.0,0.157894]
[1718663050245,1.26347307,66664.0,66663.0,0.157894]
[1718663051896,1.26383496,66664.0,66663.0,0.157894]
[1718663052219,1.37599254,66664.0,66663.0,0.157894]
[1718663052867,1.07598054,66664.0,66663.0,0.157894]
[1718663053192,1.37599254,66664.0,66663.0,0.157894]
[1718663053326,1.26421817,66664.0,66663.0,0.157894]
[1718663053725,1.28026659,66664.0,66663.0,0.157894]
[1718663053931,1.39255149,66664.0,66663.0,0.157894]
[1718663054599,1.39255149,66664.0,66663.0,0.072094]
[1718663054806,1.28026659,66664.0,66663.0,0.072094]
[1718663055012,1.75647363,66664.0,66663.0,0.009394]
[1718663055243,1.85647363,66664.0,66663.0,0.009394]
[1718663056952,1.94217363,66664.0,66663.0,0.009394]
[1718663057847,1.97372362,66664.0,66663.0,0.009394]
[1718663058091,2.05306676,66664.0,66663.0,0.009394]
[1718663058281,1.97366963,66664.0,66663.0,0.009394]
[1718663058533,2.74488365,66664.0,66663.0,0.009394]
[1718663058745,2.74488365,66664.0,66659.0,0.009394]
[1718663058746,1.59428342,66660.0,66659.0,0.009394]
[1718663058956,2.40105809,66660.0,66659.0,0.009394]
[1718663059164,2.81195377,66660.0,66659.0,0.009394]
[1718663060404,2.94759747,66660.0,66659.0,0.009394]
[1718663060565,2.90364145,66660.0,66659.0,0.009394]
[1718663060780,2.81381519,66660.0,66659.0,0.009394]
[1718663061303,3.05750834,66660.0,66659.0,0.010394]
[1718663062132,3.05550834,66660.0,66659.0,0.010394]
[1718663062325,2.96041806,66660.0,66659.0,0.010394]
[1718663062668,3.20411121,66660.0,66659.0,0.010394]
[1718663063146,3.91950834,66660.0,66659.0,0.010394]
[1718663063345,4.05409203,66660.0,66659.0,0.010394]
[1718663064174,3.20409203,66660.0,66659.0,0.010394]
[1718663064389,2.66918409,66660.0,66659.0,0.010394]
[1718663064596,3.35949094,66660.0,66659.0,0.010394]
[1718663064799,3.70376778,66660.0,66659.0,0.010394]
[1718663065003,2.90376778,66660.0,66659.0,0.010394]
[1718663066030,2.67407463,66660.0,66659.0,0.010394]
[1718663066389,2.58837463,66660.0,66659.0,0.010394]
[1718663066614,2.67407463,66660.0,66659.0,0.010394]
[1718663066801,2.53949094,66660.0,66659.0,0.010394]
[1718663067011,2.67404176,66660.0,66659.0,0.010394]
[1718663067212,2.53949094,66660.0,66659.0,0.010394]
[1718663068179,2.54988494,66660.0,66659.0,0.010394]
[1718663068382,3.26988494,66660.0,66659.0,0.010394]
[1718663068559,3.02957809,66660.0,66659.0,0.010394]
[1718663068727,3.64443576,66660.0,66659.0,0.010394]
[1718663068923,3.75277429,66660.0,66659.0,0.010394]
[1718663069171,3.94277429,66660.0,66659.0,0.010394]
[1718663069346,3.92277429,66660.0,66659.0,0.010394]
[1718663069974,3.90845478,66660.0,66659.0,0.010394]
[1718663070177,3.90845478,66660.0,66653.0,0.009405]
[1718663070178,0.16604842,66654.0,66653.0,0.009405]
[1718663070383,1.93811524,66654.0,66653.0,0.009405]
[1718663070583,2.71352924,66654.0,66653.0,0.009405]
[1718663070784,2.71352924,66654.0,66624.0,0.009405]
[1718663070785,0.76632542,66642.0,66641.0,0.072405]
[1718663070959,1.50457277,66642.0,66641.0,0.072405]
[1718663071165,1.97398852,66642.0,66641.0,0.009405]
[1718663071411,2.31070167,66642.0,66641.0,0.009405]
[1718663071581,3.00234407,66642.0,66641.0,0.009405]
[1718663071970,2.48560729,66642.0,66641.0,0.009405]
[1718663072171,2.2338761,66642.0,66641.0,0.009405]
[1718663072354,2.03154306,66642.0,66641.0,0.009405]
[1718663073091,2.38177697,66642.0,66641.0,0.009405]
[1718663073297,3.24537474,66642.0,66641.0,0.009405]
[1718663073526,2.78795775,66642.0,66641.0,0.009405]
[1718663073968,2.70225775,66642.0,66641.0,0.009405]
[1718663074177,2.6955306,66642.0,66641.0,0.009405]
[1718663074378,2.94467031,66642.0,66641.0,0.009405]
[1718663074722,2.86145061,66642.0,66641.0,0.009405]
[1718663075251,2.83829989,66642.0,66641.0,0.009405]
[1718663076206,2.53818889,66642.0,66641.0,0.009405]
[1718663076410,2.28906046,66642.0,66641.0,0.009405]
[1718663076613,2.40092034,66642.0,66641.0,0.009405]
[1718663077074,2.5131196,66642.0,66641.0,0.009405]
[1718663077286,2.75128185,66642.0,66641.0,0.009405]
[1718663077484,2.45117085,66642.0,66641.0,0.009405]
[1718663077690,2.47464946,66642.0,66641.0,0.009405]
[1718663078324,2.45117085,66642.0,66641.0,0.009405]
[1718663078524,2.45120557,66642.0,66641.0,0.009405]
[1718663078803,2.08629301,66642.0,66641.0,0.009405]
[1718663079027,2.00417667,66642.0,66641.0,0.009405]
[1718663079179,2.0619473,66642.0,66641.0,0.009405]
[1718663079526,2.00420225,66642.0,66641.0,0.009405]
[1718663080074,2.13393077,66642.0,66641.0,0.009405]
[1718663080287,2.02201317,66642.0,66641.0,0.009405]
[1718663080462,2.11153282,66642.0,66641.0,0.009405]
[1718663082171,2.35792573,66642.0,66641.0,0.009405]
[1718663083316,2.43979465,66642.0,66641.0,0.009405]
[1718663083514,2.52929128,66642.0,66641.0,0.009405]
[1718663083720,2.82940228,66642.0,66641.0,0.009405]
[1718663084347,2.43979465,66642.0,66641.0,0.009405]
[1718663085444,2.64604163,66642.0,66641.0,0.009405]
[1718663085646,1.36683142,66628.0,66627.0,0.0627]
[1718663085894,1.75362372,66628.0,66627.0,0.1394]
[1718663086653,1.80474002,66628.0,66627.0,0.1394]
[1718663087072,1.80574002,66628.0,66627.0,0.1394]
[1718663087335,1.98732518,66628.0,66627.0,0.1394]
[1718663087672,1.98632518,66628.0,66627.0,0.1394]
[1718663088099,1.36688942,66625.0,66624.0,0.009405]
[1718663088333,1.85335356,66625.0,66624.0,0.009405]
[1718663089853,1.85735356,66625.0,66624.0,0.009405]
[1718663090060,2.01006612,66625.0,66624.0,0.009405]
[1718663090472,2.03440771,66625.0,66624.0,0.009405]
[1718663091024,2.03040771,66625.0,66624.0,0.009405]
[1718663091226,1.94427228,66625.0,66624.0,0.009405]
[1718663091435,2.04303668,66625.0,66624.0,0.009405]
[1718663091806,1.80462412,66625.0,66624.0,0.009405]
[1718663092009,1.89032412,66625.0,66624.0,0.091905]
[1718663092278,1.03547282,66625.0,66624.0,0.149305]
[1718663092488,1.12298533,66625.0,66624.0,0.149305]
[1718663092688,1.12298533,66625.0,66624.0,0.15325658]
[1718663093612,1.12298533,66625.0,66624.0,0.149305]
[1718663097057,1.14092967,66625.0,66624.0,0.149305]
[1718663098970,1.14092967,66625.0,66624.0,0.15325658]
[1718663100227,0.73709833,66625.0,66624.0,0.15325658]
[1718663100421,0.82279833,66625.0,66624.0,0.15325658]
[1718663100626,0.52261133,66625.0,66624.0,0.15325658]
[1718663100830,0.82279833,66625.0,66624.0,0.16890404]
[1718663101239,1.12298533,66625.0,66624.0,0.16890404]
[1718663101654,1.12298533,66625.0,66624.0,0.15325658]
[1718663101852,0.82279833,66625.0,66624.0,0.15325658]
[1718663102025,0.82279833,66625.0,66624.0,0.16890404]
[1718663102231,0.82266002,66625.0,66624.0,0.15325658]
[1718663102460,0.18668002,66625.0,66624.0,0.45344858]
[1718663102662,0.18668002,66625.0,66624.0,0.90373658]
[1718663102663,0.1217644,66625.0,66624.0,0.90373658]
[1718663102887,0.023,66625.0,66624.0,0.93938221]
[1718663103488,0.011,66625.0,66624.0,0.93938221]
[1718663103892,0.23578,66631.0,66630.0,0.00395158]
[1718663104093,0.34261627,66631.0,66630.0,0.14205158]
[1718663104299,0.34261627,66631.0,66630.0,0.15767583]
[1718663104506,0.25691627,66631.0,66630.0,0.15767583]
[1718663104747,0.35691627,66631.0,66630.0,0.15767583]
[1718663105171,1.30609107,66631.0,66630.0,0.15372425]
[1718663105373,1.31709107,66631.0,66630.0,0.15372425]
[1718663105575,1.33313949,66631.0,66630.0,0.1381]
[1718663106192,1.31709107,66631.0,66630.0,0.1381]
[1718663106393,1.22484235,66631.0,66630.0,0.1381]
[1718663106600,1.33270563,66631.0,66630.0,0.1381]
[1718663109627,1.32070563,66631.0,66630.0,0.1381]
[1718663109794,1.33370563,66631.0,66630.0,0.1381]
[1718663110193,1.41940563,66631.0,66630.0,0.1381]
[1718663110600,1.40840563,66631.0,66630.0,0.1381]
[1718663110995,1.42040563,66631.0,66630.0,0.1381]
[1718663111223,1.40581808,66631.0,66630.0,0.1381]
[1718663111425,1.42200213,66631.0,66630.0,0.1381]
[1718663112672,1.46685839,66631.0,66630.0,0.1381]
[1718663113314,1.42200213,66631.0,66630.0,0.1381]
[1718663114358,1.48928652,66631.0,66630.0,0.1381]
[1718663184428,0.854392,66574.0,66573.0,0.00418528]
[1718663186024,0.11,66574.0,66573.0,0.00418528]
[1718663186234,0.260208,66574.0,66573.0,0.08433063]
[1718663186640,0.260208,66574.0,66573.0,0.30974163]
[1718663186641,0.11,66574.0,66573.0,0.30974163]
[1718663186861,0.01,66574.0,66573.0,0.30974163]
[1718663187066,0.01,66574.0,66573.0,0.63016363]
[1718663187266,0.01,66574.0,66573.0,0.93058563]
[1718663187916,0.15019,66582.0,66573.0,0.93058563]
[1718663187917,0.28299877,66584.0,66583.0,0.00395158]
[1718663188032,0.45649654,66584.0,66583.0,0.14455158]
[1718663188242,0.45649654,66584.0,66583.0,0.16098454]
[1718663188628,0.02331177,66584.0,66583.0,0.16098454]
[1718663188985,0.47386259,66585.0,66584.0,0.00395158]
[1718663189187,0.47386259,66585.0,66583.0,0.16121824]
[1718663189188,0.450558,66584.0,66583.0,0.16121824]
[1718663189365,0.4738706,66584.0,66583.0,0.15954752]
[1718663189573,0.4798706,66584.0,66583.0,0.16054752]
[1718663190297,0.5798706,66584.0,66583.0,0.16054752]
[1718663191074,0.1293126,66584.0,66583.0,0.16054752]
[1718663191278,0.0293126,66584.0,66583.0,0.16054752]
[1718663191703,0.0373126,66584.0,66583.0,0.16054752]
[1718663192981,0.014,66584.0,66583.0,0.16054752]
[1718663194210,0.014,66584.0,66583.0,0.61111152]
[1718663194427,0.014,66584.0,66583.0,0.91148752]
[1718663194615,0.014,66584.0,66583.0,0.61111152]
[1718663195872,0.008,66584.0,66583.0,0.61011152]
[1718663196183,0.013,66584.0,66583.0,0.61011152]
[1718663196634,0.013,66584.0,66583.0,0.30973552]
[1718663196811,0.005,66584.0,66583.0,0.30973552]
[1718663197247,0.012,66584.0,66583.0,0.31073552]
[1718663199493,0.04478434,66603.0,66583.0,0.01994752]
[1718663199706,0.0805,66611.0,66597.0,0.00395158]
[1718663199707,0.01810264,66601.0,66597.0,0.00395158]
[1718663199915,0.150138,66605.0,66604.0,0.00395158]
[1718663200035,0.51220979,66605.0,66604.0,0.00395158]
[1718663200248,0.51220979,66605.0,66604.0,0.00418528]
[1718663200443,0.06179479,66605.0,66604.0,0.00418528]
[1718663200639,0.51220979,66605.0,66604.0,0.01884747]
[1718663200843,0.61220979,66605.0,66604.0,0.0002337]
[1718663201144,0.61220979,66605.0,66604.0,0.00418528]
[1718663201761,0.61920979,66605.0,66604.0,0.00518528]
[1718663202416,0.557415,66605.0,66604.0,0.0012337]
[1718663202609,0.557415,66605.0,66604.0,0.00518528]
[1718663203155,0.558415,66605.0,66604.0,0.00518528]
[1718663205160,0.558415,66605.0,66604.0,0.0012337]
[1718663205359,0.858692,66605.0,66604.0,0.0012337]
[1718663207645,0.858692,66605.0,66604.0,0.00518528]
[1718663208483,0.858692,66605.0,66604.0,0.0012337]
[1718663209456,0.858692,66605.0,66604.0,0.00518528]
[1718663211521,0.858692,66605.0,66604.0,0.14838528]
[1718663213723,0.858692,66605.0,66604.0,0.1608334]
[1718663214807,0.858692,66605.0,66604.0,0.15688182]
[1718663215035,0.858692,66605.0,66604.0,0.1608334]
[1718663215294,0.858692,66605.0,66604.0,0.01368182]
[1718663215504,1.31169788,66605.0,66604.0,0.0012337]
[1718663215712,1.3887889,66605.0,66604.0,0.0012337]
[1718663217398,1.37274048,66605.0,66604.0,0.0012337]
[1718663220897,1.3887889,66605.0,66604.0,0.0012337]
[1718663221751,1.37274048,66605.0,66604.0,0.0012337]
[1718663226840,1.3887889,66605.0,66604.0,0.0012337]
[1718663229228,2.1744429,66605.0,66604.0,0.0012337]
[1718663229455,2.1744429,66605.0,66604.0,1e-08]
[1718663229456,2.11475309,66605.0,66604.0,1e-08]
[1718663229689,2.13711924,66605.0,66604.0,1e-08]
[1718663230361,2.04665467,66605.0,66604.0,1e-08]
[1718663230812,2.05165467,66605.0,66604.0,0.00100001]
[1718663231264,1.051284,66585.0,66584.0,0.450235]
[1718663231512,1.1123266,66585.0,66584.0,0.067435]
[1718663233325,1.1133266,66585.0,66584.0,0.079435]
[1718663233772,1.1143266,66585.0,66584.0,0.081435]
[1718663234041,1.1143266,66585.0,66584.0,0.014935]
[1718663234965,1.1143266,66585.0,66584.0,0.01888658]
[1718663235907,1.12567328,66585.0,66584.0,0.01888658]
[1718663236849,0.002,66585.0,66584.0,0.61584458]
[1718663237078,0.002,66585.0,66584.0,0.63584458]
[1718663237303,0.002,66585.0,66584.0,0.64820325]
[1718663237515,0.45255,66585.0,66584.0,0.17764525]
[1718663238358,0.45255,66585.0,66584.0,0.16528658]
[1718663238779,0.752917,66585.0,66584.0,0.17764525]
[1718663238989,0.45255,66585.0,66584.0,0.17764525]
[1718663239173,0.45255,66585.0,66584.0,0.16528658]
[1718663239729,0.752917,66585.0,66584.0,0.16528658]
[1718663239933,0.81473143,66585.0,66584.0,0.16528658]
[1718663240140,1.11509843,66585.0,66584.0,0.16528658]
[1718663241239,0.81473143,66585.0,66584.0,0.16528658]
[1718663241455,1.11509843,66585.0,66584.0,0.16528658]
[1718663241650,1.11509843,66585.0,66584.0,0.014935]
[1718663243414,1.11509843,66585.0,66584.0,0.01888658]
[1718663244503,1.11509843,66585.0,66584.0,0.014935]
[1718663244892,1.11509843,66585.0,66584.0,0.01888658]
[1718663246080,1.11509843,66585.0,66584.0,0.014935]
[1718663246081,1.35069843,66585.0,66584.0,0.014935]
[1718663246639,1.29199843,66585.0,66584.0,0.014935]
[1718663246840,1.21509843,66585.0,66584.0,0.014935]
[1718663248323,1.21509843,66585.0,66584.0,0.01888658]
[1718663250914,1.21509843,66585.0,66584.0,0.014935]
[1718663250915,1.35389843,66585.0,66584.0,0.014935]
[1718663253216,1.29519843,66585.0,66584.0,0.014935]
[1718663254635,1.81434273,66585.0,66584.0,0.014935]
[1718663255713,1.81434273,66585.0,66584.0,0.002935]
[1718663255931,1.81334273,66585.0,66584.0,0.002935]
[1718663256140,1.91234273,66585.0,66584.0,0.000935]
[1718663256645,1.91234273,66585.0,66584.0,0.004935]
[1718663256915,2.36542229,66585.0,66584.0,0.004935]
[1718663257129,2.12375529,66585.0,66584.0,0.004]
[1718663257339,2.23680866,66585.0,66584.0,0.004]
[1718663257544,2.23680866,66585.0,66573.0,0.000935]
[1718663257545,1.36792442,66574.0,66573.0,0.000935]
[1718663257745,1.52973885,66574.0,66573.0,0.000935]
[1718663258189,1.50314994,66574.0,66573.0,0.000935]
[1718663258712,1.51919836,66574.0,66573.0,0.000935]
[1718663259410,1.57789836,66574.0,66573.0,0.000935]
[1718663259632,1.7316109,66574.0,66573.0,0.008935]
[1718663259834,1.57889836,66574.0,66573.0,0.008935]
[1718663260341,1.52019836,66574.0,66573.0,0.008935]
[1718663260567,1.52119836,66574.0,66573.0,0.020935]
[1718663260776,1.52019836,66574.0,66573.0,0.008935]
[1718663260978,1.51919836,66574.0,66573.0,0.000935]
[1718663261184,1.52019836,66574.0,66573.0,0.008935]
[1718663261383,1.46992442,66574.0,66573.0,0.014935]
[1718663261609,1.49320692,66574.0,66573.0,0.014935]
[1718663263183,1.64591948,66574.0,66573.0,0.014935]
[1718663268607,1.62987106,66574.0,66573.0,0.014935]
[1718663268811,1.49320692,66574.0,66573.0,0.014935]
[1718663272473,1.51129522,66574.0,66573.0,0.014935]
[1718663278401,1.51128927,66574.0,66573.0,0.014935]
[1718663286299,1.53478902,66574.0,66573.0,0.014935]
[1718663288362,1.57951043,66574.0,66573.0,0.014935]
[1718663288537,1.58036043,66574.0,66573.0,0.014935]
[1718663290133,1.56431201,66574.0,66573.0,0.014935]
[1718663290334,1.56433643,66574.0,66573.0,0.077835]
[1718663290566,1.5195906,66574.0,66573.0,0.077835]
[1718663294510,1.56436344,66574.0,66573.0,0.077835]
[1718663294947,1.56436281,66574.0,66573.0,0.077835]
[1718663296152,1.5195906,66574.0,66573.0,0.077835]
[1718663297327,1.58674891,66574.0,66573.0,0.077835]
[1718663297931,1.28633191,66574.0,66573.0,0.077835]
[1718663298759,1.2191736,66574.0,66573.0,0.077835]
[1718663298959,1.28639607,66574.0,66573.0,0.077835]
[1718663299357,1.2191736,66574.0,66573.0,0.077835]
[1718663299960,1.30882991,66574.0,66573.0,0.077835]
[1718663300162,1.2191736,66574.0,66573.0,0.077835]
[1718663300361,1.30886345,66574.0,66573.0,0.077835]
[1718663300506,1.2191736,66574.0,66573.0,0.077835]
[1718663301113,0.6183396,66574.0,66573.0,0.16128658]
[1718663301540,0.9187566,66574.0,66573.0,0.16128658]
[1718663302334,0.89525685,66574.0,66573.0,0.157335]
[1718663302533,0.89525685,66574.0,66573.0,0.16128658]
[1718663303187,0.89525685,66574.0,66573.0,0.157335]
[1718663304131,0.8719803,66574.0,66573.0,0.157335]
[1718663304330,0.9093809,66574.0,66573.0,0.157335]
[1718663304536,0.9093809,66574.0,66573.0,0.16128658]
[1718663304761,0.9093809,66574.0,66573.0,0.157335]
[1718663304944,0.9093809,66574.0,66573.0,0.16128658]
[1718663305348,0.9093809,66574.0,66573.0,0.157335]
[1718663305547,0.9093809,66574.0,66573.0,0.16128658]
[1718663307601,0.95423899,66574.0,66573.0,0.16128658]
[1718663308659,0.6089639,66574.0,66573.0,0.16128658]
[1718663308859,0.65382199,66574.0,66573.0,0.16128658]
[1718663309233,0.6089639,66574.0,66573.0,0.16128658]
[1718663310248,0.1583389,66574.0,66573.0,0.16128658]
[1718663310454,0.1402506,66574.0,66573.0,0.2372173]
[1718663310699,0.0402506,66574.0,66573.0,0.24960806]
[1718663312280,0.00285,66574.0,66573.0,1.00066306]
[1718663312481,0.00285,66574.0,66573.0,0.72024106]
[1718663315000,0.00285,66574.0,66573.0,1.02066306]
[1718663315348,0.00285,66574.0,66573.0,0.72024106]
[1718663316350,0.00285,66574.0,66573.0,0.70024106]
[1718663316547,0.00285,66574.0,66573.0,0.72024106]
[1718663317700,0.00285,66574.0,66573.0,0.70024106]
[1718663324052,0.00285,66574.0,66573.0,0.39981906]
[1718663325437,0.00285,66574.0,66573.0,0.24960806]
[1718663331700,0.06083354,66574.0,66573.0,0.24960806]
[1718663331920,0.00285,66574.0,66573.0,0.24960806]
[1718663332364,0.06185568,66574.0,66573.0,0.24960806]
[1718663332584,0.00285,66574.0,66573.0,0.24960806]
[1718663334775,0.06264194,66574.0,66573.0,0.24960806]
[1718663336935,0.06264194,66574.0,66573.0,0.39981906]
[1718663337166,0.06264194,66574.0,66573.0,0.70024106]
[1718663337410,0.06264194,66574.0,66573.0,0.24960806]
[1718663337668,0.06264194,66574.0,66573.0,0.39981906]
[1718663337922,0.00285,66574.0,66573.0,0.41981906]
[1718663339171,0.08256365,66574.0,66573.0,0.41981906]
[1718663339498,0.08256365,66574.0,66573.0,0.24960806]
[1718663349562,0.08256365,66574.0,66573.0,0.26960806]
[1718663350928,0.08256365,66574.0,66573.0,0.24960806]
[1718663352604,0.08256365,66574.0,66573.0,0.55003006]